[Event "Titled Tuesday Blitz June 21 Late 2022"]
[White "Sjugirov, Sanan"]
[Black "Wagner, Dennis"]
[WhiteFideId "4189302"]
[BlackFideId "24650684"]
[WhiteElo "2602"]
[BlackElo "2355"]
[Result "0-1"]
[Round "08"]
[TimeControl "180+1"]
[Date "2022.06.21"]
[WhiteClock "0:00:04"]
[BlackClock "0:00:45"]

1. e4 {[%clk 0:03:00]}  c5 {[%clk 0:03:00]} 2. Nc3 {[%clk 0:03:00]}  d6 {[%clk 0:03:00]} 3. Nge2 {[%clk 0:02:58]}  Nf6 {[%clk 0:02:59]} 4. g3 {[%clk 0:02:58]}  g6 {[%clk 0:02:57]} 5. Bg2 {[%clk 0:02:59]}  Bg7 {[%clk 0:02:57]} 6. O-O {[%clk 0:02:59]}  O-O {[%clk 0:02:58]} 7. d3 {[%clk 0:03:00]}  Nc6 {[%clk 0:02:58]} 8. h3 {[%clk 0:03:00]}  Rb8 {[%clk 0:02:58]} 9. a4 {[%clk 0:03:00]}  a6 {[%clk 0:02:58]} 10. f4 {[%clk 0:02:57]}  b5 {[%clk 0:02:59]} 11. axb5 {[%clk 0:02:56]}  axb5 {[%clk 0:02:59]} 12. e5 {[%clk 0:02:56]}  dxe5 {[%clk 0:02:52]} 13. Bxc6 {[%clk 0:02:56]}  Bxh3 {[%clk 0:02:52]} 14. Bg2 {[%clk 0:02:18]}  Bxg2 {[%clk 0:02:50]} 15. Kxg2 {[%clk 0:02:19]}  b4 {[%clk 0:02:51]} 16. Ne4 {[%clk 0:02:12]}  Qd5 {[%clk 0:02:51]} 17. c4 {[%clk 0:01:30]}  Qc6 {[%clk 0:02:51]} 18. Qc2 {[%clk 0:01:26]}  b3 {[%clk 0:02:46]} 19. Qb1 {[%clk 0:01:26]}  Rfd8 {[%clk 0:02:45]} 20. Nc3 {[%clk 0:01:18]}  Ng4 {[%clk 0:02:29]} 21. f5 {[%clk 0:01:09]}  gxf5 {[%clk 0:02:17]} 22. Rxf5 {[%clk 0:01:10]}  e6 {[%clk 0:02:18]} 23. Rg5 {[%clk 0:01:08]}  f5 {[%clk 0:02:17]} 24. Rxg4 {[%clk 0:00:53]}  fxg4 {[%clk 0:02:18]} 25. Be3 {[%clk 0:00:51]}  Rf8 {[%clk 0:02:06]} 26. Bxc5 {[%clk 0:00:30]}  Rf3 {[%clk 0:02:07]} 27. Bg1 {[%clk 0:00:22]}  Rd8 {[%clk 0:02:03]} 28. Qe1 {[%clk 0:00:13]}  Rdxd3 {[%clk 0:01:52]} 29. Rd1 {[%clk 0:00:13]}  Rxd1 {[%clk 0:01:29]} 30. Nxd1 {[%clk 0:00:14]}  Qxc4 {[%clk 0:01:27]} 31. Ndc3 {[%clk 0:00:14]}  Bh6 {[%clk 0:01:17]} 32. Qd1 {[%clk 0:00:12]}  Qd3 {[%clk 0:00:50]} 33. Qxb3 {[%clk 0:00:04]}  Qf1+ {[%clk 0:00:44]} 34. Kh2 {[%clk 0:00:04]}  Qh3# {[%clk 0:00:45]} 0-1


[Site "https://www.chess.com"]

[Event "Titled Tuesday Blitz June 21 Late 2022"]
[White "Sohal, Tanraj"]
[Black "Ladan, Nicholas"]
[WhiteFideId "2608499"]
[BlackFideId "30918855"]
[WhiteElo "2200"]
[BlackElo "2167"]
[Result "0-1"]
[Round "08"]
[TimeControl "180+1"]
[Date "2022.06.21"]
[WhiteClock "0:01:29"]
[BlackClock "0:01:43"]

1. d4 {[%clk 0:03:00]}  d5 {[%clk 0:02:59]} 2. c4 {[%clk 0:03:01]}  e6 {[%clk 0:02:58]} 3. Nf3 {[%clk 0:03:01]}  Nf6 {[%clk 0:02:58]} 4. Nc3 {[%clk 0:03:01]}  Bb4 {[%clk 0:02:59]} 5. Bg5 {[%clk 0:03:01]}  h6 {[%clk 0:02:58]} 6. Bh4 {[%clk 0:03:01]}  g5 {[%clk 0:02:57]} 7. Bg3 {[%clk 0:03:01]}  Ne4 {[%clk 0:02:57]} 8. Rc1 {[%clk 0:03:01]}  h5 {[%clk 0:02:55]} 9. h3 {[%clk 0:02:53]}  Nc6 {[%clk 0:02:54]} 10. Bh2 {[%clk 0:02:50]}  g4 {[%clk 0:02:54]} 11. Ne5 {[%clk 0:02:42]}  Qf6 {[%clk 0:02:42]} 12. f3 {[%clk 0:02:23]}  Qh4+ {[%clk 0:02:33]} 13. g3 {[%clk 0:02:09]}  Nxg3 {[%clk 0:02:33]} 14. Bxg3 {[%clk 0:02:09]}  Qxg3+ {[%clk 0:02:34]} 15. Kd2 {[%clk 0:02:10]}  Nxe5 {[%clk 0:02:28]} 16. dxe5 {[%clk 0:02:04]}  d4 {[%clk 0:02:27]} 17. hxg4 {[%clk 0:01:59]}  dxc3+ {[%clk 0:02:23]} 18. bxc3 {[%clk 0:02:00]}  Ba3 {[%clk 0:02:18]} 19. Rb1 {[%clk 0:01:58]}  Bd7 {[%clk 0:02:11]} 20. Qb3 {[%clk 0:01:47]}  Bc5 {[%clk 0:02:04]} 21. Qxb7 {[%clk 0:01:46]}  Rd8 {[%clk 0:02:03]} 22. Rxh5 {[%clk 0:01:45]}  Rxh5 {[%clk 0:02:02]} 23. gxh5 {[%clk 0:01:46]}  Qxe5 {[%clk 0:01:55]} 24. Kc2 {[%clk 0:01:42]}  Ba4+ {[%clk 0:01:53]} 25. Kb2 {[%clk 0:01:40]}  Rd2+ {[%clk 0:01:50]} 26. Kc1 {[%clk 0:01:29]}  Qxc3# {[%clk 0:01:43]} 0-1


[Site "https://www.chess.com"]

[Event "Titled Tuesday Blitz June 21 Late 2022"]
[White "Tari, Aryan"]
[Black "Ivic, Velimir"]
[WhiteFideId "1510045"]
[BlackFideId "950122"]
[WhiteElo "2567"]
[BlackElo "2610"]
[Result "1-0"]
[Round "08"]
[TimeControl "180+1"]
[Date "2022.06.21"]
[WhiteClock "0:01:09"]
[BlackClock "0:00:06"]

1. e4 {[%clk 0:03:00]}  c5 {[%clk 0:03:00]} 2. Nc3 {[%clk 0:02:59]}  Nc6 {[%clk 0:03:00]} 3. f4 {[%clk 0:02:59]}  g6 {[%clk 0:03:00]} 4. Nf3 {[%clk 0:02:59]}  Bg7 {[%clk 0:03:01]} 5. Bb5 {[%clk 0:03:00]}  Nd4 {[%clk 0:03:00]} 6. O-O {[%clk 0:03:00]}  a6 {[%clk 0:03:00]} 7. Bd3 {[%clk 0:02:59]}  e6 {[%clk 0:02:59]} 8. e5 {[%clk 0:02:57]}  d5 {[%clk 0:02:53]} 9. Nxd4 {[%clk 0:02:54]}  cxd4 {[%clk 0:02:53]} 10. Ne2 {[%clk 0:02:55]}  Ne7 {[%clk 0:02:43]} 11. a4 {[%clk 0:02:28]}  Nc6 {[%clk 0:02:42]} 12. b3 {[%clk 0:02:28]}  Bf8 {[%clk 0:02:38]} 13. Qe1 {[%clk 0:02:14]}  Bc5 {[%clk 0:02:33]} 14. Ba3 {[%clk 0:02:09]}  b6 {[%clk 0:02:33]} 15. Qg3 {[%clk 0:01:58]}  h5 {[%clk 0:02:27]} 16. h3 {[%clk 0:01:56]}  Bb7 {[%clk 0:02:20]} 17. Kh2 {[%clk 0:01:54]}  Rc8 {[%clk 0:02:18]} 18. Ng1 {[%clk 0:01:46]}  Bxa3 {[%clk 0:02:12]} 19. Rxa3 {[%clk 0:01:46]}  Nb4 {[%clk 0:02:13]} 20. Nf3 {[%clk 0:01:41]}  Qe7 {[%clk 0:01:53]} 21. Raa1 {[%clk 0:01:40]}  Nxd3 {[%clk 0:01:38]} 22. cxd3 {[%clk 0:01:41]}  Qb4 {[%clk 0:01:31]} 23. f5 {[%clk 0:01:34]}  gxf5 {[%clk 0:01:29]} 24. Qg7 {[%clk 0:01:34]}  Qf8 {[%clk 0:01:20]} 25. Qf6 {[%clk 0:01:34]}  Rg8 {[%clk 0:01:18]} 26. Qh4 {[%clk 0:01:22]}  Qg7 {[%clk 0:01:16]} 27. Rf2 {[%clk 0:01:22]}  a5 {[%clk 0:01:14]} 28. Re1 {[%clk 0:01:21]}  Ba6 {[%clk 0:01:14]} 29. Qxd4 {[%clk 0:01:18]}  Qg3+ {[%clk 0:01:13]} 30. Kg1 {[%clk 0:01:18]}  Qxh3 {[%clk 0:01:03]} 31. Qxb6 {[%clk 0:01:15]}  Bxd3 {[%clk 0:01:01]} 32. Qb7 {[%clk 0:01:12]}  Rd8 {[%clk 0:00:32]} 33. Re3 {[%clk 0:01:11]}  Be4 {[%clk 0:00:27]} 34. Ng5 {[%clk 0:01:10]}  Rd7 {[%clk 0:00:07]} 35. Qc8+ {[%clk 0:01:09]}  Ke7 {[%clk 0:00:06]} 36. Qxg8 {[%clk 0:01:08]}  Qg4 {[%clk 0:00:05]} 37. Qxf7+ {[%clk 0:01:08]}  Kd8 {[%clk 0:00:05]} 38. Nxe6+ {[%clk 0:01:08]}  Kc8 {[%clk 0:00:06]} 39. Qe8+ {[%clk 0:01:09]} 1-0


[Site "https://www.chess.com"]

[Event "Titled Tuesday Blitz June 21 Late 2022"]
[White "Xiong, Jeffery"]
[Black "Vasquez Schroeder, Rodrigo"]
[WhiteFideId "2047640"]
[BlackFideId "3400042"]
[WhiteElo "2714"]
[BlackElo "2567"]
[Result "1-0"]
[Round "08"]
[TimeControl "180+1"]
[Date "2022.06.21"]
[WhiteClock "0:01:00"]
[BlackClock "0:00:23"]

1. c4 {[%clk 0:03:00]}  c5 {[%clk 0:02:58]} 2. Nf3 {[%clk 0:03:00]}  Nf6 {[%clk 0:02:59]} 3. Nc3 {[%clk 0:03:00]}  e6 {[%clk 0:02:59]} 4. g3 {[%clk 0:02:59]}  b6 {[%clk 0:02:59]} 5. Bg2 {[%clk 0:02:59]}  Bb7 {[%clk 0:03:00]} 6. O-O {[%clk 0:02:59]}  a6 {[%clk 0:03:00]} 7. Re1 {[%clk 0:02:56]}  Be7 {[%clk 0:03:00]} 8. e4 {[%clk 0:02:50]}  d6 {[%clk 0:03:00]} 9. d4 {[%clk 0:02:50]}  cxd4 {[%clk 0:03:01]} 10. Nxd4 {[%clk 0:02:51]}  Qc7 {[%clk 0:03:01]} 11. b3 {[%clk 0:02:50]}  O-O {[%clk 0:03:01]} 12. Bb2 {[%clk 0:02:51]}  Nbd7 {[%clk 0:03:01]} 13. Rc1 {[%clk 0:02:51]}  Rac8 {[%clk 0:03:01]} 14. Nc2 {[%clk 0:02:36]}  Rfe8 {[%clk 0:02:57]} 15. Ne3 {[%clk 0:02:34]}  Qb8 {[%clk 0:02:56]} 16. Qe2 {[%clk 0:02:24]}  Nc5 {[%clk 0:02:54]} 17. Nc2 {[%clk 0:02:23]}  Ba8 {[%clk 0:02:52]} 18. Rcd1 {[%clk 0:02:18]}  Red8 {[%clk 0:02:46]} 19. f4 {[%clk 0:02:18]}  b5 {[%clk 0:02:33]} 20. e5 {[%clk 0:02:12]}  dxe5 {[%clk 0:02:22]} 21. fxe5 {[%clk 0:02:13]}  Ne8 {[%clk 0:02:02]} 22. cxb5 {[%clk 0:02:08]}  Bxg2 {[%clk 0:01:59]} 23. Kxg2 {[%clk 0:02:07]}  Rxd1 {[%clk 0:01:54]} 24. Rxd1 {[%clk 0:02:05]}  axb5 {[%clk 0:01:55]} 25. Ba3 {[%clk 0:01:57]}  Nc7 {[%clk 0:01:42]} 26. Kh3 {[%clk 0:01:52]}  Qb7 {[%clk 0:01:28]} 27. Nd4 {[%clk 0:01:44]}  b4 {[%clk 0:01:22]} 28. Bxb4 {[%clk 0:01:42]}  Nxb3 {[%clk 0:00:44]} 29. Bxe7 {[%clk 0:01:38]}  Nxd4 {[%clk 0:00:42]} 30. Rxd4 {[%clk 0:01:39]}  Ne8 {[%clk 0:00:42]} 31. Bb4 {[%clk 0:01:28]}  h6 {[%clk 0:00:36]} 32. a3 {[%clk 0:01:17]}  Nc7 {[%clk 0:00:35]} 33. Qd3 {[%clk 0:01:14]}  Qa8 {[%clk 0:00:33]} 34. Rd7 {[%clk 0:01:12]}  Na6 {[%clk 0:00:30]} 35. Ne4 {[%clk 0:01:07]}  Nc7 {[%clk 0:00:23]} 36. Qf3 {[%clk 0:01:00]} 1-0


[Site "https://www.chess.com"]

[Event "Titled Tuesday Blitz June 21 Late 2022"]
[White "Yoo, Christopher Woojin"]
[Black "Murzin, Volodar"]
[WhiteFideId "30909694"]
[BlackFideId "44155573"]
[WhiteElo "2105"]
[BlackElo "2585"]
[Result "0-1"]
[Round "08"]
[TimeControl "180+1"]
[Date "2022.06.21"]
[WhiteClock "0:00:01"]
[BlackClock "0:00:08"]

1. e4 {[%clk 0:03:00]}  c6 {[%clk 0:02:59]} 2. d4 {[%clk 0:03:00]}  d5 {[%clk 0:02:59]} 3. Nc3 {[%clk 0:03:01]}  dxe4 {[%clk 0:02:57]} 4. Nxe4 {[%clk 0:03:02]}  Bf5 {[%clk 0:02:56]} 5. Ng3 {[%clk 0:03:02]}  Bg6 {[%clk 0:02:57]} 6. Nf3 {[%clk 0:03:03]}  Nd7 {[%clk 0:02:55]} 7. h4 {[%clk 0:03:02]}  h6 {[%clk 0:02:54]} 8. h5 {[%clk 0:03:03]}  Bh7 {[%clk 0:02:54]} 9. Bd3 {[%clk 0:03:03]}  Bxd3 {[%clk 0:02:55]} 10. Qxd3 {[%clk 0:03:04]}  e6 {[%clk 0:02:54]} 11. Bf4 {[%clk 0:03:05]}  Qa5+ {[%clk 0:02:44]} 12. Bd2 {[%clk 0:03:04]}  Qb6 {[%clk 0:02:41]} 13. O-O-O {[%clk 0:03:02]}  Ngf6 {[%clk 0:02:41]} 14. Ne5 {[%clk 0:02:49]}  Rd8 {[%clk 0:02:18]} 15. Nxf7 {[%clk 0:02:23]}  Kxf7 {[%clk 0:02:15]} 16. Qg6+ {[%clk 0:02:22]}  Kg8 {[%clk 0:02:14]} 17. Rhe1 {[%clk 0:02:17]}  Re8 {[%clk 0:01:36]} 18. Bc3 {[%clk 0:01:10]}  Qb5 {[%clk 0:01:27]} 19. d5 {[%clk 0:01:04]}  cxd5 {[%clk 0:01:17]} 20. Nf5 {[%clk 0:00:49]}  exf5 {[%clk 0:00:50]} 21. Rxe8 {[%clk 0:00:48]}  Nxe8 {[%clk 0:00:51]} 22. Qe6+ {[%clk 0:00:48]}  Kh7 {[%clk 0:00:47]} 23. Qxf5+ {[%clk 0:00:48]}  Kg8 {[%clk 0:00:46]} 24. Qe6+ {[%clk 0:00:42]}  Kh7 {[%clk 0:00:45]} 25. Qf5+ {[%clk 0:00:33]}  Kg8 {[%clk 0:00:41]} 26. Qe6+ {[%clk 0:00:29]}  Kh7 {[%clk 0:00:22]} 27. Qxe8 {[%clk 0:00:27]}  Qc6 {[%clk 0:00:16]} 28. Rd3 {[%clk 0:00:22]}  Nc5 {[%clk 0:00:10]} 29. Qg6+ {[%clk 0:00:08]}  Qxg6 {[%clk 0:00:10]} 30. hxg6+ {[%clk 0:00:09]}  Kxg6 {[%clk 0:00:10]} 31. Rxd5 {[%clk 0:00:10]}  Be7 {[%clk 0:00:09]} 32. Bd4 {[%clk 0:00:10]}  Rc8 {[%clk 0:00:08]} 33. Be3 {[%clk 0:00:04]}  b6 {[%clk 0:00:05]} 34. c3 {[%clk 0:00:04]}  Kf7 {[%clk 0:00:04]} 35. Kc2 {[%clk 0:00:03]}  Rc7 {[%clk 0:00:03]} 36. g4 {[%clk 0:00:02]}  Ne6 {[%clk 0:00:04]} 37. f4 {[%clk 0:00:02]}  Bf6 {[%clk 0:00:03]} 38. f5 {[%clk 0:00:01]}  Nc5 {[%clk 0:00:03]} 39. Bf4 {[%clk 0:00:02]}  Rd7 {[%clk 0:00:04]} 40. Rd6 {[%clk 0:00:01]}  Rxd6 {[%clk 0:00:04]} 41. Bxd6 {[%clk 0:00:02]}  Nd7 {[%clk 0:00:04]} 42. Kd3 {[%clk 0:00:02]}  Ne5+ {[%clk 0:00:04]} 43. Ke4 {[%clk 0:00:03]}  Nxg4 {[%clk 0:00:04]} 44. Bb8 {[%clk 0:00:03]}  a6 {[%clk 0:00:04]} 45. a4 {[%clk 0:00:04]}  b5 {[%clk 0:00:04]} 46. axb5 {[%clk 0:00:03]}  axb5 {[%clk 0:00:05]} 47. Ba7 {[%clk 0:00:02]}  h5 {[%clk 0:00:04]} 48. Bb8 {[%clk 0:00:02]}  h4 {[%clk 0:00:05]} 49. Kf3 {[%clk 0:00:02]}  Ne5+ {[%clk 0:00:05]} 50. Ke4 {[%clk 0:00:03]}  Nc4 {[%clk 0:00:06]} 51. b3 {[%clk 0:00:02]}  Nd2+ {[%clk 0:00:06]} 52. Kd3 {[%clk 0:00:02]}  Nxb3 {[%clk 0:00:07]} 53. Bd6 {[%clk 0:00:02]}  Na5 {[%clk 0:00:07]} 54. Bc7 {[%clk 0:00:02]}  Nc4 {[%clk 0:00:07]} 55. Bh2 {[%clk 0:00:01]}  Ke7 {[%clk 0:00:08]} 0-1


[Site "https://www.chess.com"]

[Event "Titled Tuesday Blitz June 21 Late 2022"]
[White "Araujo Filho, Luiz Antonio Coel"]
[Black "Kanyamarala, Trisha"]
[WhiteFideId "2130661"]
[BlackFideId "45004722"]
[WhiteElo "2177"]
[BlackElo "2134"]
[Result "0-1"]
[Round "09"]
[TimeControl "180+1"]
[Date "2022.06.22"]
[WhiteClock "0:00:30"]
[BlackClock "0:00:32"]

1. d4 {[%clk 0:03:00]}  Nf6 {[%clk 0:02:58]} 2. Nf3 {[%clk 0:03:01]}  e6 {[%clk 0:02:59]} 3. e3 {[%clk 0:03:01]}  d5 {[%clk 0:02:59]} 4. Bd3 {[%clk 0:03:00]}  c5 {[%clk 0:02:59]} 5. c3 {[%clk 0:02:59]}  Nc6 {[%clk 0:02:59]} 6. Nbd2 {[%clk 0:03:00]}  Bd6 {[%clk 0:02:59]} 7. Qe2 {[%clk 0:03:01]}  O-O {[%clk 0:02:59]} 8. dxc5 {[%clk 0:03:01]}  Bxc5 {[%clk 0:02:59]} 9. e4 {[%clk 0:03:02]}  e5 {[%clk 0:02:58]} 10. h3 {[%clk 0:03:02]}  d4 {[%clk 0:02:57]} 11. O-O {[%clk 0:03:01]}  Re8 {[%clk 0:02:48]} 12. Nb3 {[%clk 0:03:01]}  Bb6 {[%clk 0:02:48]} 13. Bg5 {[%clk 0:03:01]}  h6 {[%clk 0:02:46]} 14. Bh4 {[%clk 0:03:01]}  Be6 {[%clk 0:02:35]} 15. Rfd1 {[%clk 0:02:57]}  a5 {[%clk 0:02:23]} 16. Bb5 {[%clk 0:02:44]}  a4 {[%clk 0:02:21]} 17. Nbd2 {[%clk 0:02:43]}  Bd7 {[%clk 0:01:58]} 18. g4 {[%clk 0:02:32]}  Ra5 {[%clk 0:01:42]} 19. Bc4 {[%clk 0:02:29]}  Ba7 {[%clk 0:01:33]} 20. Kg2 {[%clk 0:02:03]}  Qe7 {[%clk 0:01:16]} 21. Nf1 {[%clk 0:01:47]}  Be6 {[%clk 0:01:06]} 22. Bxe6 {[%clk 0:01:28]}  Qxe6 {[%clk 0:01:06]} 23. Ng3 {[%clk 0:01:28]}  Ne7 {[%clk 0:00:54]} 24. g5 {[%clk 0:01:23]}  Ng6 {[%clk 0:00:51]} 25. Qd2 {[%clk 0:00:54]}  Nf4+ {[%clk 0:00:49]} 26. Kf1 {[%clk 0:00:37]}  Qxh3+ {[%clk 0:00:47]} 27. Ke1 {[%clk 0:00:38]}  Nxe4 {[%clk 0:00:33]} 28. Nxe4 {[%clk 0:00:30]}  Qh1+ {[%clk 0:00:32]} 0-1


[Site "https://www.chess.com"]

[Event "Titled Tuesday Blitz June 21 Late 2022"]
[White "Arnold, Ken"]
[Black "Ricaurte Lopez, Juan Carlos"]
[WhiteFideId "2056836"]
[BlackFideId "3600327"]
[WhiteElo "2322"]
[BlackElo "2209"]
[Result "1/2-1/2"]
[Round "09"]
[TimeControl "180+1"]
[Date "2022.06.22"]
[WhiteClock "0:00:48"]
[BlackClock "0:00:11"]

1. d4 {[%clk 0:03:00]}  d5 {[%clk 0:02:58]} 2. c4 {[%clk 0:03:00]}  e6 {[%clk 0:02:56]} 3. Nf3 {[%clk 0:03:00]}  c5 {[%clk 0:02:55]} 4. cxd5 {[%clk 0:03:00]}  exd5 {[%clk 0:02:53]} 5. Nc3 {[%clk 0:03:00]}  Nc6 {[%clk 0:02:51]} 6. Bf4 {[%clk 0:02:59]}  Nf6 {[%clk 0:02:42]} 7. e3 {[%clk 0:02:58]}  Bd6 {[%clk 0:02:41]} 8. Bxd6 {[%clk 0:02:57]}  Qxd6 {[%clk 0:02:40]} 9. dxc5 {[%clk 0:02:57]}  Qxc5 {[%clk 0:02:39]} 10. Rc1 {[%clk 0:02:58]}  Be6 {[%clk 0:02:33]} 11. a3 {[%clk 0:02:55]}  O-O {[%clk 0:02:29]} 12. Be2 {[%clk 0:02:51]}  Rad8 {[%clk 0:02:28]} 13. O-O {[%clk 0:02:50]}  a6 {[%clk 0:02:21]} 14. Nb5 {[%clk 0:02:48]}  Qb6 {[%clk 0:02:18]} 15. Nbd4 {[%clk 0:02:45]}  Qxb2 {[%clk 0:02:13]} 16. Nxc6 {[%clk 0:02:43]}  bxc6 {[%clk 0:02:12]} 17. Rxc6 {[%clk 0:02:44]}  Ne4 {[%clk 0:02:00]} 18. Qc2 {[%clk 0:02:33]}  Qxa3 {[%clk 0:01:55]} 19. Rxa6 {[%clk 0:02:32]}  Qc3 {[%clk 0:01:48]} 20. Qxc3 {[%clk 0:02:24]}  Nxc3 {[%clk 0:01:46]} 21. Bd3 {[%clk 0:02:24]}  Ne4 {[%clk 0:01:36]} 22. Bxe4 {[%clk 0:02:16]}  dxe4 {[%clk 0:01:35]} 23. Nd4 {[%clk 0:02:13]}  Bc4 {[%clk 0:01:34]} 24. Ra7 {[%clk 0:02:01]}  Bxf1 {[%clk 0:01:32]} 25. Kxf1 {[%clk 0:02:01]}  g6 {[%clk 0:01:28]} 26. g4 {[%clk 0:01:59]}  Rfe8 {[%clk 0:01:24]} 27. Kg2 {[%clk 0:01:55]}  Rd5 {[%clk 0:01:23]} 28. Kg3 {[%clk 0:01:52]}  h5 {[%clk 0:01:21]} 29. h3 {[%clk 0:01:51]}  hxg4 {[%clk 0:01:11]} 30. hxg4 {[%clk 0:01:51]}  Kg7 {[%clk 0:01:03]} 31. Ra4 {[%clk 0:01:45]}  Rc8 {[%clk 0:00:49]} 32. Ne2 {[%clk 0:01:43]}  Rc2 {[%clk 0:00:44]} 33. Nf4 {[%clk 0:01:41]}  Rdd2 {[%clk 0:00:40]} 34. Nh3 {[%clk 0:01:41]}  f5 {[%clk 0:00:31]} 35. g5 {[%clk 0:01:38]}  Rd6 {[%clk 0:00:21]} 36. Ra7+ {[%clk 0:01:30]}  Kf8 {[%clk 0:00:19]} 37. Nf4 {[%clk 0:01:26]}  Rc1 {[%clk 0:00:18]} 38. Kg2 {[%clk 0:01:18]}  Rcd1 {[%clk 0:00:13]} 39. Rb7 {[%clk 0:01:00]}  Kg8 {[%clk 0:00:12]} 40. Ra7 {[%clk 0:00:56]}  Kf8 {[%clk 0:00:12]} 41. Rb7 {[%clk 0:00:48]}  Kg8 {[%clk 0:00:11]} 42. Ra7 {[%clk 0:00:48]}  Kf8 {[%clk 0:00:11]} 1/2-1/2


[Site "https://www.chess.com"]

[Event "Titled Tuesday Blitz June 21 Late 2022"]
[White "Avazkhonov, Alikhon"]
[Black "Goltseva, Ekaterina"]
[WhiteFideId "14208504"]
[BlackFideId "24173770"]
[WhiteElo "1739"]
[BlackElo "2086"]
[Result "0-1"]
[Round "09"]
[TimeControl "180+1"]
[Date "2022.06.22"]
[WhiteClock "0:00:18"]
[BlackClock "0:00:46"]

1. d4 {[%clk 0:03:00]}  Nf6 {[%clk 0:02:57]} 2. c4 {[%clk 0:03:00]}  e6 {[%clk 0:02:50]} 3. Nc3 {[%clk 0:03:00]}  Bb4 {[%clk 0:02:47]} 4. e3 {[%clk 0:03:00]}  c5 {[%clk 0:02:46]} 5. Nf3 {[%clk 0:02:57]}  Bxc3+ {[%clk 0:02:30]} 6. bxc3 {[%clk 0:02:56]}  d6 {[%clk 0:02:30]} 7. Bd3 {[%clk 0:02:53]}  Nc6 {[%clk 0:02:29]} 8. O-O {[%clk 0:02:52]}  e5 {[%clk 0:02:29]} 9. dxc5 {[%clk 0:02:41]}  e4 {[%clk 0:02:23]} 10. cxd6 {[%clk 0:02:23]}  exf3 {[%clk 0:02:10]} 11. c5 {[%clk 0:02:16]}  fxg2 {[%clk 0:02:08]} 12. Kxg2 {[%clk 0:02:16]}  O-O {[%clk 0:02:01]} 13. f4 {[%clk 0:02:11]}  Bg4 {[%clk 0:01:57]} 14. Qc2 {[%clk 0:02:09]}  Qd7 {[%clk 0:01:53]} 15. e4 {[%clk 0:01:49]}  Bh3+ {[%clk 0:01:47]} 16. Kh1 {[%clk 0:01:42]}  Bxf1 {[%clk 0:01:44]} 17. Bxf1 {[%clk 0:01:43]}  Qg4 {[%clk 0:01:32]} 18. e5 {[%clk 0:01:24]}  Nd5 {[%clk 0:01:26]} 19. c4 {[%clk 0:00:50]}  Nxf4 {[%clk 0:01:05]} 20. Qe4 {[%clk 0:00:48]}  g5 {[%clk 0:01:01]} 21. Bb2 {[%clk 0:00:24]}  Nh3 {[%clk 0:00:52]} 22. Qg2 {[%clk 0:00:24]}  Qxg2+ {[%clk 0:00:51]} 23. Bxg2 {[%clk 0:00:25]}  Nf4 {[%clk 0:00:51]} 24. Bd5 {[%clk 0:00:20]}  Nd3 {[%clk 0:00:49]} 25. Bxc6 {[%clk 0:00:17]}  bxc6 {[%clk 0:00:47]} 26. Bd4 {[%clk 0:00:18]}  Rfe8 {[%clk 0:00:46]} 0-1


[Site "https://www.chess.com"]

[Event "Titled Tuesday Blitz June 21 Late 2022"]
[White "Barp, Alberto"]
[Black "Gubajdullin, Alexei"]
[WhiteFideId "872555"]
[BlackFideId "4141202"]
[WhiteElo "2229"]
[BlackElo "2280"]
[Result "0-1"]
[Round "09"]
[TimeControl "180+1"]
[Date "2022.06.21"]
[WhiteClock "0:00:14"]
[BlackClock "0:00:10"]

1. d4 {[%clk 0:02:57]}  g6 {[%clk 0:02:59]} 2. Nf3 {[%clk 0:02:53]}  Bg7 {[%clk 0:02:59]} 3. e4 {[%clk 0:02:54]}  d6 {[%clk 0:02:59]} 4. Nbd2 {[%clk 0:02:51]}  Nf6 {[%clk 0:02:56]} 5. Bb5+ {[%clk 0:02:51]}  c6 {[%clk 0:02:43]} 6. Bd3 {[%clk 0:02:51]}  O-O {[%clk 0:02:43]} 7. O-O {[%clk 0:02:51]}  Qc7 {[%clk 0:02:40]} 8. e5 {[%clk 0:02:48]}  dxe5 {[%clk 0:02:39]} 9. Nxe5 {[%clk 0:02:46]}  Rd8 {[%clk 0:02:35]} 10. Ndf3 {[%clk 0:02:42]}  c5 {[%clk 0:02:29]} 11. Ng5 {[%clk 0:02:35]}  Rf8 {[%clk 0:02:18]} 12. Bc4 {[%clk 0:02:20]}  e6 {[%clk 0:02:18]} 13. Be3 {[%clk 0:02:04]}  h6 {[%clk 0:02:03]} 14. Ngxf7 {[%clk 0:01:48]}  Rxf7 {[%clk 0:02:01]} 15. Nxf7 {[%clk 0:01:48]}  Kxf7 {[%clk 0:02:01]} 16. dxc5 {[%clk 0:01:48]}  Na6 {[%clk 0:01:52]} 17. Qf3 {[%clk 0:01:32]}  Nxc5 {[%clk 0:01:45]} 18. Rad1 {[%clk 0:01:30]}  Ne4 {[%clk 0:01:34]} 19. Bd3 {[%clk 0:01:29]}  Qc6 {[%clk 0:01:33]} 20. Rfe1 {[%clk 0:01:25]}  e5 {[%clk 0:01:27]} 21. Bxh6 {[%clk 0:01:12]}  Bg4 {[%clk 0:01:04]} 22. Bxe4 {[%clk 0:01:05]}  Bxf3 {[%clk 0:01:03]} 23. Bxc6 {[%clk 0:01:04]}  Bxd1 {[%clk 0:01:00]} 24. Bxg7 {[%clk 0:00:45]}  Kxg7 {[%clk 0:00:55]} 25. Bxb7 {[%clk 0:00:40]}  Rd8 {[%clk 0:00:45]} 26. c3 {[%clk 0:00:36]}  Rd2 {[%clk 0:00:44]} 27. Rxe5 {[%clk 0:00:31]}  Rxb2 {[%clk 0:00:42]} 28. Re7+ {[%clk 0:00:30]}  Kf8 {[%clk 0:00:35]} 29. Re6 {[%clk 0:00:29]}  Kf7 {[%clk 0:00:27]} 30. Re1 {[%clk 0:00:26]}  Rxb7 {[%clk 0:00:21]} 31. Rxd1 {[%clk 0:00:25]}  Rb2 {[%clk 0:00:21]} 32. Ra1 {[%clk 0:00:23]}  Rc2 {[%clk 0:00:20]} 33. h3 {[%clk 0:00:23]}  Rxc3 {[%clk 0:00:21]} 34. Rb1 {[%clk 0:00:24]}  Ra3 {[%clk 0:00:20]} 35. Rb2 {[%clk 0:00:24]}  Nd5 {[%clk 0:00:20]} 36. h4 {[%clk 0:00:20]}  Nc3 {[%clk 0:00:20]} 37. Rc2 {[%clk 0:00:18]}  Nxa2 {[%clk 0:00:19]} 38. g4 {[%clk 0:00:19]}  Nb4 {[%clk 0:00:19]} 39. Rc4 {[%clk 0:00:18]}  a5 {[%clk 0:00:17]} 40. Kg2 {[%clk 0:00:17]}  Rb3 {[%clk 0:00:14]} 41. Rc7+ {[%clk 0:00:15]}  Ke6 {[%clk 0:00:14]} 42. Ra7 {[%clk 0:00:16]}  Nc6 {[%clk 0:00:14]} 43. Ra6 {[%clk 0:00:15]}  Kd5 {[%clk 0:00:14]} 44. h5 {[%clk 0:00:15]}  gxh5 {[%clk 0:00:13]} 45. gxh5 {[%clk 0:00:16]}  Rb7 {[%clk 0:00:12]} 46. Kg3 {[%clk 0:00:15]}  Rb8 {[%clk 0:00:10]} 47. f4 {[%clk 0:00:15]}  Kc5 {[%clk 0:00:11]} 48. h6 {[%clk 0:00:10]}  Kb5 {[%clk 0:00:10]} 49. Rxc6 {[%clk 0:00:10]}  Kxc6 {[%clk 0:00:10]} 50. f5 {[%clk 0:00:10]}  a4 {[%clk 0:00:10]} 51. Kg4 {[%clk 0:00:11]}  a3 {[%clk 0:00:10]} 52. f6 {[%clk 0:00:12]}  a2 {[%clk 0:00:11]} 53. Kg5 {[%clk 0:00:13]}  a1=Q {[%clk 0:00:10]} 54. Kg6 {[%clk 0:00:14]}  Qg1+ {[%clk 0:00:10]} 0-1


[Site "https://www.chess.com"]